Workbook

Sheet EAEPE_CA_DEP
B2: Ente Público
B3: Estado Analítico del Ejercicio del Presupuesto de Egresos
B4: Clasificación Administrativa
B5: Del 01 enero al 31 diciembre 2021
B6: Concepto | C6: Egresos | H6: Subejercicio
C7: Aprobado | D7: Ampliaciones/ (Reducciones) | E7: Modificado | F7: Devengado | G7: Pagado
C8: 1 | D8: 2 | E8: 3 = (1+2) | F8: 4 | G8: 5 | H8: 6 = ( 3 - 4)
B10: ADMINISTRACIÓN | C10: 9337998.57 | D10: 234014.27 | E10: =C10+D10 -> 9572012.84 | F10: 8711540.49 | G10: 7707898.6 | H10: =E10-F10 -> 860472.35
B11: COMERCIAL | C11: 2985820.47 | D11: -164728.41 | E11: =C11+D11 -> 2821092.06 | F11: 2725302.19 | G11: 2700900.97 | H11: =E11-F11 -> 95789.87
B12: OPERACIÓN | C12: 32763088.25 | D12: 1950740.26 | E12: =C12+D12 -> 34713828.51 | F12: 33014223.74 | G12: 32713642.22 | H12: =E12-F12 -> 1699604.77
B13: SANEAMIENTO | C13: 4024916.98 | D13: 1461051.53 | E13: =C13+D13 -> 5485968.51 | F13: 4735918.74 | G13: 3798041.48 | H13: =E13-F13 -> 750049.77
E14: =C14+D14 -> 0 | H14: =E14-F14 -> 0
C15: 0 | D15: 0 | E15: =C15+D15 -> 0 | F15: 0 | G15: 0 | H15: =E15-F15 -> 0
C16: 0 | D16: 0 | E16: 0 | F16: 0 | G16: 0 | H16: 0
C17: 0 | D17: 0 | E17: 0 | F17: 0 | G17: 0 | H17: 0
C18: 0 | D18: 0 | E18: 0 | F18: 0 | G18: 0 | H18: 0
B20: Total del Gasto | C20: =SUM(C9:C19) -> 49111824.27 | D20: =SUM(D9:D19) -> 3481077.65 | E20: =SUM(C20,D20) -> 52592901.92 | F20: =SUM(F9:F19) -> 49186985.16 | G20: =SUM(G9:G19) -> 46920483.27 | H20: =E20-F20 -> 3405916.76
B22: Bajo protesta de decir verdad declaramos que la informacion financiera y sus notas, son razonablemente correctos y son responsabilidad del emisor
B32: C. JOSE LUIS CISNEROS CARLOS | E32: C.P. ROSA MARIA PIÑON ANCHONDO
B33: DIRECTOR EJECUTIVO | E33: DIRECTORA FINANCIERA
